[Event "Championnat d'Europe Rapide"]
[Date "2024.12.08"]
[White "Ragger, Markus"]
[Black "Koelle, Tobias"]
[WhiteElo "2577"]
[BlackElo "2437"]
[Round "11.26"]
[Result "1/2-1/2"]
[TimeControl "900+10"]

1. d4 {[%emt 00:00:01] [%clk 00:15:19]} Nf6 {[%emt 00:00:01] [%clk 00:15:19]} 2.
c4 {[%emt 00:00:02] [%clk 00:15:27]} e6 {[%emt 00:00:01] [%clk 00:15:27]} 3. Nf3
{[%clk 00:15:36]} d5 {[%emt 00:00:09] [%clk 00:15:28]} 4. g3 {[%emt 00:00:01]
[%clk 00:15:45]} Bb4+ {[%emt 00:00:11] [%clk 00:15:27]} 5. Bd2 {[%emt 00:00:01]
[%clk 00:15:54]} a5 {[%emt 00:00:02] [%clk 00:15:34]} 6. Bg2 {[%emt 00:00:03]
[%clk 00:16:03]} O-O {[%emt 00:00:09] [%clk 00:15:35]} 7. Qc2 {[%emt 00:00:15]
[%clk 00:15:58]} c5 {[%emt 00:00:30] [%clk 00:15:15]} 8. a3 {[%emt 00:00:17]
[%clk 00:15:51]} Bxd2+ {[%emt 00:00:02] [%clk 00:15:22]} 9. Qxd2 {[%emt
00:00:02] [%clk 00:16:00]} cxd4 {[%emt 00:00:51] [%clk 00:14:40]} 10. cxd5
{[%emt 00:00:02] [%clk 00:16:09]} Qxd5 {[%emt 00:00:38] [%clk 00:14:11]} 11.
Qxd4 {[%emt 00:00:02] [%clk 00:16:18]} Nc6 {[%emt 00:00:08] [%clk 00:14:13]} 12.
Qxd5 {[%emt 00:00:04] [%clk 00:16:24]} Nxd5 {[%emt 00:00:12] [%clk 00:14:09]}
13. O-O {[%emt 00:00:14] [%clk 00:16:21]} a4 {[%emt 00:00:24] [%clk 00:13:56]}
14. Nbd2 {[%emt 00:00:08] [%clk 00:16:23]} Nb6 {[%emt 00:00:24] [%clk 00:13:41]}
15. Rac1 {[%emt 00:00:48] [%clk 00:15:46]} Ra5 {[%emt 00:01:04] [%clk 00:12:47]}
16. Nc4 {[%emt 00:01:24] [%clk 00:14:32]} Nxc4 {[%emt 00:00:14] [%clk 00:12:42]}
17. Rxc4 {[%emt 00:00:03] [%clk 00:14:40]} e5 {[%emt 00:00:14] [%clk 00:12:37]}
18. Rfc1 {[%emt 00:01:54] [%clk 00:12:57]} Rd8 {[%emt 00:01:51] [%clk 00:10:56]}
19. Ng5 {[%emt 00:00:43] [%clk 00:12:24]} h6 {[%emt 00:01:18] [%clk 00:09:47]}
20. Bxc6 {[%emt 00:00:14] [%clk 00:12:21]} bxc6 {[%emt 00:00:13] [%clk
00:09:44]} 21. Ne4 {[%emt 00:02:12] [%clk 00:10:19]} Rb5 {[%emt 00:01:23] [%clk
00:08:31]} 22. Rxc6 {[%emt 00:01:41] [%clk 00:08:48]} Bb7 {[%emt 00:00:48] [%clk
00:07:53]} 23. Rd6 {[%emt 00:00:01] [%clk 00:08:57]} Rf8 {[%emt 00:02:18] [%clk
00:05:45]} 24. Nd2 {[%emt 00:00:18] [%clk 00:08:49]} Rxb2 {[%emt 00:00:04] [%clk
00:05:51]} 25. f3 {[%emt 00:00:01] [%clk 00:08:57]} Ra2 {[%emt 00:00:27] [%clk
00:05:34]} 26. Rc3 {[%emt 00:00:35]} Rc8 {[%clk 00:05:40]} 27. Rxc8+ {[%emt
00:04:18] [%clk 00:04:29]} Bxc8 {[%clk 00:05:49]} 28. Rd8+ {[%emt 00:00:02]
[%clk 00:04:38]} Kh7 {[%emt 00:00:01] [%clk 00:05:58]} 29. Rxc8 {[%emt 00:00:08]
[%clk 00:04:40]} Rxd2 {[%emt 00:00:02] [%clk 00:06:06]} 30. Kf2 {[%emt 00:01:19]
[%clk 00:03:31]} Ra2 {[%emt 00:00:07] [%clk 00:06:09]} 31. Rc3 {[%emt 00:00:01]
[%clk 00:03:40]} Kg6 {[%emt 00:00:09] [%clk 00:06:09]} 32. h4 {[%emt 00:00:24]
[%clk 00:03:27]} f5 {[%emt 00:00:09] [%clk 00:06:10]} 33. Rc6+ {[%emt 00:00:16]
[%clk 00:03:21]} Kf7 {[%emt 00:00:02] [%clk 00:06:18]} 34. Rc7+ {[%emt 00:00:12]
[%clk 00:03:19]} Kf6 {[%emt 00:00:01] [%clk 00:06:26]} 35. Rc6+ {[%emt 00:00:02]
[%clk 00:03:28]} Ke7 {[%emt 00:00:17] [%clk 00:06:19]} 36. Rc7+ {[%clk
00:03:38]} Kf6 {[%emt 00:00:10] [%clk 00:06:18]} 37. Rc6+ {[%emt 00:00:02] [%clk
00:03:46]} Ke7 {[%clk 00:06:26]} 38. Rc7+ {[%emt 00:00:01] [%clk 00:03:56]} Kf6
{[%emt 00:00:01] [%clk 00:06:36]} 1/2-1/2

[Site "Europe Echecs"]

[Event "Championnat d'Europe Rapide"]
[Date "2024.12.08"]
[White "Aizenberg, Benny"]
[Black "Djukic, Nikola"]
[WhiteElo "2425"]
[BlackElo "2493"]
[Round "11.27"]
[Result "1-0"]
[TimeControl "900+10"]

1. e4 {[%emt 00:00:02] [%clk 00:15:18]} c5 {[%emt 00:00:02] [%clk 00:15:18]} 2.
Nf3 {[%emt 00:00:01] [%clk 00:15:26]} d6 {[%emt 00:00:16] [%clk 00:15:12]} 3. d4
{[%emt 00:00:02] [%clk 00:15:35]} cxd4 {[%emt 00:00:03] [%clk 00:15:19]} 4. Nxd4
{[%clk 00:15:43]} Nf6 {[%emt 00:00:04] [%clk 00:15:25]} 5. Nc3 {[%emt 00:00:02]
[%clk 00:15:52]} Nc6 {[%emt 00:00:05] [%clk 00:15:30]} 6. Bg5 {[%emt 00:00:02]
[%clk 00:15:59]} e6 {[%emt 00:00:05] [%clk 00:15:35]} 7. Qd2 {[%emt 00:00:03]
[%clk 00:16:06]} a6 {[%emt 00:00:03] [%clk 00:15:42]} 8. O-O-O {[%emt 00:00:09]
[%clk 00:16:06]} Bd7 {[%emt 00:00:02] [%clk 00:15:50]} 9. Nxc6 {[%emt 00:00:04]
[%clk 00:16:12]} Bxc6 {[%emt 00:00:09] [%clk 00:15:51]} 10. f3 {[%emt 00:00:02]
[%clk 00:16:20]} Be7 {[%emt 00:01:31] [%clk 00:14:30]} 11. h4 {[%emt 00:00:04]
[%clk 00:16:26]} b5 {[%emt 00:00:18] [%clk 00:14:23]} 12. Kb1 {[%emt 00:00:10]
[%clk 00:16:26]} Rc8 {[%emt 00:00:35] [%clk 00:13:58]} 13. a3 {[%emt 00:00:49]
[%clk 00:15:47]} Rb8 {[%emt 00:01:05] [%clk 00:13:04]} 14. Bf4 {[%emt 00:00:41]
[%clk 00:15:15]} Qb6 {[%emt 00:02:14] [%clk 00:11:00]} 15. Bxd6 {[%emt 00:01:58]
[%clk 00:13:27]} Rd8 {[%emt 00:00:01] [%clk 00:11:09]} 16. Qf4 {[%emt 00:00:57]
[%clk 00:12:40]} Rxd6 {[%emt 00:01:50] [%clk 00:09:29]} 17. Rxd6 {[%emt
00:00:03] [%clk 00:12:47]} Qb8 {[%emt 00:00:02] [%clk 00:09:37]} 18. e5 {[%emt
00:00:06] [%clk 00:12:51]} Bxd6 {[%emt 00:00:02] [%clk 00:09:46]} 19. exd6
{[%emt 00:00:02] [%clk 00:12:59]} O-O {[%emt 00:00:03] [%clk 00:09:52]} 20. Ne4
{[%emt 00:01:52] [%clk 00:11:17]} Bxe4 {[%emt 00:02:48] [%clk 00:07:14]} 21.
fxe4 {[%emt 00:00:03] [%clk 00:11:24]} e5 {[%emt 00:00:02] [%clk 00:07:23]} 22.
Qxe5 {[%emt 00:01:17] [%clk 00:10:17]} Re8 {[%emt 00:00:01] [%clk 00:07:32]} 23.
Qf5 {[%emt 00:00:12] [%clk 00:10:15]} Rxe4 {[%emt 00:01:17] [%clk 00:06:25]} 24.
Bd3 {[%emt 00:00:29] [%clk 00:09:56]} Rd4 {[%emt 00:00:03] [%clk 00:06:31]} 25.
Re1 {[%emt 00:02:25] [%clk 00:07:41]} Rxd6 {[%emt 00:00:07] [%clk 00:06:34]} 26.
g4 {[%emt 00:00:16] [%clk 00:07:35]} g6 {[%emt 00:01:43] [%clk 00:05:02]} 27.
Qf3 {[%emt 00:01:49] [%clk 00:05:56]} Qd8 {[%emt 00:00:03] [%clk 00:05:09]} 28.
h5 {[%emt 00:00:21] [%clk 00:05:44]} Nd7 {[%emt 00:02:22] [%clk 00:02:57]} 29.
Qf2 {[%emt 00:01:21] [%clk 00:04:33]} Qg5 {[%emt 00:02:28] [%clk 00:00:39]} 30.
Re8+ {[%emt 00:01:39] [%clk 00:03:04]} Kg7 {[%emt 00:00:01] [%clk 00:00:48]} 31.
hxg6 {[%emt 00:00:03] [%clk 00:03:11]} Qf6 {[%emt 00:00:32] [%clk 00:00:26]} 32.
gxh7 {[%emt 00:00:14] [%clk 00:03:07]} 1-0

[Site "Europe Echecs"]

[Event "Championnat d'Europe Rapide"]
[Date "2024.12.08"]
[White "Dobrikov, Marco"]
[Black "Zajic, Milan"]
[WhiteElo "2407"]
[BlackElo "2392"]
[Round "11.28"]
[Result "0-1"]
[TimeControl "900+10"]

1. d4 {[%clk 00:15:19]} Nf6 {[%emt 00:00:02] [%clk 00:15:19]} 2. c4 {[%emt
00:00:01] [%clk 00:15:28]} e6 {[%emt 00:00:01] [%clk 00:15:27]} 3. Nf3 {[%emt
00:00:04] [%clk 00:15:34]} Bb4+ {[%emt 00:00:03] [%clk 00:15:35]} 4. Bd2 {[%clk
00:15:43]} Be7 {[%emt 00:00:14] [%clk 00:15:30]} 5. g3 {[%emt 00:00:26] [%clk
00:15:26]} d5 {[%emt 00:00:02] [%clk 00:15:39]} 6. Bg2 {[%emt 00:00:11] [%clk
00:15:25]} O-O {[%emt 00:00:02] [%clk 00:15:46]} 7. O-O {[%emt 00:00:10] [%clk
00:15:26]} Nbd7 {[%emt 00:00:01] [%clk 00:15:54]} 8. Qc2 {[%emt 00:00:35] [%clk
00:15:01]} c6 {[%clk 00:16:03]} 9. b3 {[%emt 00:00:13] [%clk 00:14:58]} a5
{[%emt 00:00:01] [%clk 00:16:11]} 10. Bc3 {[%emt 00:00:03] [%clk 00:15:06]} b5
{[%emt 00:00:04] [%clk 00:16:17]} 11. Nbd2 {[%emt 00:00:52] [%clk 00:14:23]} Ba6
{[%emt 00:00:13] [%clk 00:16:14]} 12. Bb2 {[%emt 00:00:05] [%clk 00:14:28]} bxc4
{[%emt 00:00:30] [%clk 00:15:54]} 13. bxc4 {[%emt 00:00:01] [%clk 00:14:37]} c5
{[%clk 00:16:03]} 14. Ne5 {[%emt 00:01:20] [%clk 00:13:27]} Rc8 {[%emt 00:00:12]
[%clk 00:16:00]} 15. Qa4 {[%emt 00:01:12] [%clk 00:12:25]} cxd4 {[%emt 00:03:20]
[%clk 00:12:50]} 16. Nc6 {[%emt 00:00:23] [%clk 00:12:12]} Nb6 {[%emt 00:01:23]
[%clk 00:11:37]} 17. Nxe7+ {[%emt 00:01:27] [%clk 00:10:54]} Qxe7 {[%emt
00:00:02] [%clk 00:11:45]} 18. Qxa5 {[%emt 00:00:01] [%clk 00:11:03]} Nxc4
{[%emt 00:00:23] [%clk 00:11:32]} 19. Nxc4 {[%emt 00:01:38] [%clk 00:09:35]}
Bxc4 {[%emt 00:00:02] [%clk 00:11:40]} 20. Bxd4 {[%emt 00:01:32] [%clk
00:08:14]} Bxe2 {[%emt 00:00:52] [%clk 00:10:58]} 21. Rfe1 {[%emt 00:00:04]
[%clk 00:08:19]} Bc4 {[%emt 00:00:14] [%clk 00:10:55]} 22. a4 {[%emt 00:00:01]
[%clk 00:08:28]} Ra8 {[%emt 00:03:54] [%clk 00:07:11]} 23. Qd2 {[%emt 00:00:02]
[%clk 00:08:36]} Rfb8 {[%emt 00:01:13] [%clk 00:06:09]} 24. a5 {[%emt 00:00:23]
[%clk 00:08:23]} h6 {[%emt 00:00:01] [%clk 00:06:17]} 25. Qf4 {[%emt 00:03:06]
[%clk 00:05:27]} Rb3 {[%emt 00:01:27] [%clk 00:05:01]} 26. Be5 {[%emt 00:01:21]
[%clk 00:04:16]} Ra6 {[%emt 00:01:32] [%clk 00:03:38]} 27. Bd4 {[%emt 00:00:36]
[%clk 00:03:50]} Qd8 {[%emt 00:00:46] [%clk 00:03:03]} 28. Bb6 {[%emt 00:00:23]
[%clk 00:03:37]} Qc8 {[%emt 00:00:23] [%clk 00:02:50]} 29. Bd4 {[%emt 00:00:06]
[%clk 00:03:40]} Nd7 {[%emt 00:00:19] [%clk 00:02:41]} 30. Qg4 {[%emt 00:00:10]
[%clk 00:03:39]} Qf8 {[%emt 00:00:04] [%clk 00:02:49]} 31. Bf1 {[%emt 00:01:03]
[%clk 00:02:46]} Bxf1 {[%emt 00:00:51] [%clk 00:02:08]} 32. Kxf1 {[%emt
00:00:17] [%clk 00:02:39]} Rb4 {[%emt 00:00:09] [%clk 00:02:09]} 33. Qd1 {[%emt
00:00:08] [%clk 00:02:40]} Qa8 {[%emt 00:00:40] [%clk 00:01:38]} 34. Kg1 {[%emt
00:00:33] [%clk 00:02:19]} Rc4 {[%emt 00:00:17] [%clk 00:01:31]} 35. Qd2 {[%emt
00:00:07] [%clk 00:02:21]} Nc5 {[%emt 00:00:15] [%clk 00:01:26]} 36. Reb1 {[%emt
00:00:47] [%clk 00:01:44]} Ne4 {[%emt 00:00:28] [%clk 00:01:07]} 37. Qd3 {[%emt
00:00:01] [%clk 00:01:54]} Rxa5 {[%emt 00:00:28] [%clk 00:00:49]} 38. Rxa5
{[%emt 00:00:01] [%clk 00:02:02]} Qxa5 {[%emt 00:00:01] [%clk 00:00:58]} 39. f3
{[%emt 00:00:02] [%clk 00:02:10]} Qa4 {[%emt 00:00:50] [%clk 00:00:18]} 40. Bf2
{[%emt 00:01:01] [%clk 00:01:19]} Rc3 {[%emt 00:00:08] [%clk 00:00:21]} 41. Rb8+
{[%emt 00:00:10] [%clk 00:01:19]} Kh7 {[%clk 00:00:30]} 42. Qb1 {[%clk
00:01:29]} Rxf3 {[%emt 00:00:06] [%clk 00:00:35]} 0-1

[Site "Europe Echecs"]

[Event "Championnat d'Europe Rapide"]
[Date "2024.12.08"]
[White "Brunner, Nicolas"]
[Black "Kozul, Zdenko"]
[WhiteElo "2413"]
[BlackElo "2519"]
[Round "11.29"]
[Result "1-0"]
[TimeControl "900+10"]

1. d4 {[%emt 00:00:02] [%clk 00:15:18]} Nf6 {[%emt 00:00:04] [%clk 00:15:17]} 2.
c4 {[%emt 00:00:01] [%clk 00:15:27]} g6 {[%emt 00:00:02] [%clk 00:15:25]} 3. Nc3
{[%emt 00:00:03] [%clk 00:15:34]} Bg7 {[%emt 00:00:01] [%clk 00:15:33]} 4. e4
{[%emt 00:00:02] [%clk 00:15:42]} d6 {[%emt 00:00:01] [%clk 00:15:42]} 5. Be2
{[%emt 00:00:02] [%clk 00:15:50]} O-O {[%emt 00:00:03] [%clk 00:15:49]} 6. Be3
{[%emt 00:00:02] [%clk 00:15:58]} e5 {[%emt 00:01:27] [%clk 00:14:32]} 7. d5
{[%emt 00:00:02] [%clk 00:16:07]} Na6 {[%emt 00:00:17] [%clk 00:14:25]} 8. h4
{[%emt 00:00:09] [%clk 00:16:07]} Nc5 {[%emt 00:00:27] [%clk 00:14:08]} 9. Qc2
{[%emt 00:00:09] [%clk 00:16:08]} h5 {[%emt 00:00:33] [%clk 00:13:45]} 10. f3
{[%emt 00:00:07] [%clk 00:16:11]} a5 {[%emt 00:00:43] [%clk 00:13:12]} 11. Nh3
{[%emt 00:00:18] [%clk 00:16:01]} Bxh3 {[%emt 00:00:14] [%clk 00:13:09]} 12.
Rxh3 {[%emt 00:00:06] [%clk 00:16:06]} c6 {[%emt 00:00:02] [%clk 00:13:18]} 13.
O-O-O {[%emt 00:00:40] [%clk 00:15:35]} cxd5 {[%emt 00:00:45] [%clk 00:12:43]}
14. cxd5 {[%emt 00:00:03] [%clk 00:15:42]} a4 {[%emt 00:00:39] [%clk 00:12:14]}
15. Kb1 {[%emt 00:00:06] [%clk 00:15:47]} Qa5 {[%emt 00:00:05] [%clk 00:12:19]}
16. Nb5 {[%emt 00:01:04] [%clk 00:14:53]} a3 {[%emt 00:00:50] [%clk 00:11:39]}
17. b3 {[%emt 00:00:26] [%clk 00:14:37]} Rfc8 {[%emt 00:01:13] [%clk 00:10:36]}
18. Qd2 {[%emt 00:02:02] [%clk 00:12:45]} Qd8 {[%emt 00:00:35] [%clk 00:10:10]}
19. Rc1 {[%emt 00:00:16] [%clk 00:12:40]} Ncxe4 {[%emt 00:01:11] [%clk
00:09:09]} 20. fxe4 {[%emt 00:00:03] [%clk 00:12:47]} Nxe4 {[%emt 00:00:01]
[%clk 00:09:18]} 21. Qb4 {[%emt 00:01:20] [%clk 00:11:38]} f5 {[%emt 00:02:07]
[%clk 00:07:20]} 22. Bd3 {[%emt 00:03:07] [%clk 00:08:41]} Rxc1+ {[%emt
00:00:04] [%clk 00:07:26]} 23. Kxc1 {[%emt 00:00:10] [%clk 00:08:42]} Rc8+
{[%emt 00:00:06] [%clk 00:07:30]} 24. Kb1 {[%emt 00:00:02] [%clk 00:08:50]} Nc5
{[%emt 00:00:02] [%clk 00:07:38]} 25. Bc4 {[%emt 00:00:19] [%clk 00:08:40]} e4
{[%emt 00:00:24] [%clk 00:07:24]} 26. Qd2 {[%emt 00:02:09] [%clk 00:06:42]} f4
{[%emt 00:02:16] [%clk 00:05:17]} 27. Bxc5 {[%emt 00:00:39] [%clk 00:06:13]}
Rxc5 {[%emt 00:02:14] [%clk 00:03:13]} 28. Qxf4 {[%emt 00:00:02] [%clk
00:06:21]} Qa5 {[%emt 00:00:50] [%clk 00:02:33]} 29. Qxe4 {[%emt 00:00:49] [%clk
00:05:43]} Qd2 {[%emt 00:00:50] [%clk 00:01:53]} 30. Qe2 {[%emt 00:00:24] [%clk
00:05:28]} Qf4 {[%emt 00:00:51] [%clk 00:01:12]} 31. Rf3 {[%emt 00:00:54] [%clk
00:04:44]} Qxh4 {[%emt 00:00:02] [%clk 00:01:20]} 32. Bd3 {[%emt 00:04:04] [%clk
00:00:49]} Qg5 {[%emt 00:00:26] [%clk 00:01:04]} 33. Rf1 {[%emt 00:00:08] [%clk
00:00:51]} Kh7 {[%emt 00:00:05] [%clk 00:01:10]} 34. Qe4 {[%emt 00:00:09] [%clk
00:00:52]} Kh6 {[%emt 00:00:09] [%clk 00:01:11]} 35. Nxa3 {[%emt 00:00:18] [%clk
00:00:45]} Rxd5 {[%emt 00:00:12] [%clk 00:01:08]} 36. Nc4 {[%emt 00:00:21] [%clk
00:00:33]} Rd4 {[%emt 00:00:03] [%clk 00:01:16]} 37. Qf3 {[%emt 00:00:03] [%clk
00:00:40]} b5 {[%emt 00:00:10] [%clk 00:01:15]} 38. Nb2 {[%emt 00:00:16] [%clk
00:00:34]} Qe5 {[%emt 00:00:42] [%clk 00:00:43]} 39. Rf2 {[%emt 00:00:28] [%clk
00:00:17]} Qe1+ {[%emt 00:00:40] [%clk 00:00:12]} 40. Nd1 {[%clk 00:00:26]} Be5
{[%emt 00:00:06] [%clk 00:00:17]} 41. g3 {[%emt 00:00:07]} b4 {[%emt 00:00:07]
[%clk 00:00:19]} 42. Bc2 {[%emt 00:00:12] [%clk 00:00:29]} h4 {[%emt 00:00:19]
[%clk 00:00:00]} 1-0

[Site "Europe Echecs"]

[Event "Championnat d'Europe Rapide"]
[Date "2024.12.08"]
[White "Gatineau, Yovann"]
[Black "Beerdsen, Thomas"]
[WhiteElo "2363"]
[BlackElo "2502"]
[Round "11.30"]
[Result "0-1"]
[TimeControl "900+10"]

1. d4 {[%clk 00:15:19]} d5 {[%emt 00:00:02] [%clk 00:15:19]} 2. c4 {[%emt
00:00:03] [%clk 00:15:28]} Nc6 {[%clk 00:15:27]} 3. Nc3 {[%emt 00:00:05] [%clk
00:15:32]} Nf6 {[%emt 00:00:07] [%clk 00:15:30]} 4. Nf3 {[%emt 00:00:04] [%clk
00:15:38]} dxc4 {[%emt 00:00:02] [%clk 00:15:38]} 5. d5 {[%emt 00:01:04] [%clk
00:14:44]} Na5 {[%emt 00:00:01] [%clk 00:15:47]} 6. e4 {[%emt 00:00:02] [%clk
00:14:53]} e6 {[%emt 00:00:49] [%clk 00:15:07]} 7. Bg5 {[%emt 00:00:14] [%clk
00:14:49]} h6 {[%emt 00:03:33] [%clk 00:11:43]} 8. Bxf6 {[%emt 00:00:32] [%clk
00:14:28]} gxf6 {[%emt 00:00:01] [%clk 00:11:51]} 9. Bxc4 {[%emt 00:02:12] [%clk
00:12:27]} Nxc4 {[%emt 00:00:02] [%clk 00:11:59]} 10. Qa4+ {[%emt 00:00:02]
[%clk 00:12:36]} Bd7 {[%emt 00:00:27] [%clk 00:11:42]} 11. Qxc4 {[%emt 00:00:03]
[%clk 00:12:43]} Bd6 {[%emt 00:00:11] [%clk 00:11:41]} 12. dxe6 {[%emt 00:01:48]
[%clk 00:11:05]} fxe6 {[%emt 00:00:22] [%clk 00:11:28]} 13. O-O {[%emt 00:00:50]
[%clk 00:10:25]} Qe7 {[%emt 00:00:16] [%clk 00:11:22]} 14. Rac1 {[%emt 00:02:54]
[%clk 00:07:41]} O-O-O {[%emt 00:00:06] [%clk 00:11:25]} 15. Rfd1 {[%emt
00:00:05] [%clk 00:07:46]} Kb8 {[%emt 00:02:16]} 16. Rd3 {[%clk 00:05:46]} Rhg8
{[%emt 00:00:21] [%clk 00:11:18]} 17. Rcd1 {[%emt 00:00:03] [%clk 00:05:54]} Qe8
{[%emt 00:01:07] [%clk 00:10:20]} 18. Nd4 {[%emt 00:00:44] [%clk 00:05:21]} Rg5
{[%emt 00:01:22] [%clk 00:09:08]} 19. g3 {[%emt 00:01:04] [%clk 00:04:28]} h5
{[%emt 00:00:07] [%clk 00:09:11]} 20. f4 {[%emt 00:00:28] [%clk 00:04:10]} Rc5
{[%emt 00:00:48] [%clk 00:08:32]} 21. Qb3 {[%emt 00:00:13] [%clk 00:04:07]} h4
{[%emt 00:00:10] [%clk 00:08:32]} 22. Nf3 {[%emt 00:00:57] [%clk 00:03:20]} hxg3
{[%emt 00:00:10] [%clk 00:08:31]} 23. e5 {[%emt 00:01:00] [%clk 00:02:31]} gxh2+
{[%emt 00:00:03] [%clk 00:08:38]} 24. Kh1 {[%emt 00:00:05] [%clk 00:02:36]} fxe5
{[%emt 00:00:12] [%clk 00:08:37]} 25. fxe5 {[%emt 00:00:13] [%clk 00:02:33]} Be7
{[%emt 00:00:33] [%clk 00:08:14]} 26. Ne4 {[%emt 00:01:56] [%clk 00:00:47]} Rb5
{[%emt 00:02:03] [%clk 00:06:20]} 27. Qc4 {[%emt 00:00:14] [%clk 00:00:44]} Bc6
{[%emt 00:00:09] [%clk 00:06:21]} 28. Rxd8+ {[%emt 00:00:28] [%clk 00:00:26]}
Bxd8 {[%emt 00:00:01] [%clk 00:06:29]} 29. Kxh2 {[%emt 00:00:13] [%clk
00:00:22]} Rxb2+ {[%emt 00:00:23] [%clk 00:06:17]} 30. Kg3 {[%emt 00:00:15]
[%clk 00:00:17]} Qg6+ {[%emt 00:00:05] [%clk 00:06:22]} 31. Kf4 {[%emt 00:00:05]
[%clk 00:00:23]} Be7 {[%emt 00:01:41] [%clk 00:04:50]} 32. Qd4 {[%emt 00:00:06]
[%clk 00:00:28]} b6 {[%emt 00:00:12] [%clk 00:04:48]} 33. Rg1 {[%emt 00:00:26]
[%clk 00:00:12]} Qf5+ {[%emt 00:00:05] [%clk 00:04:53]} 34. Ke3 {[%emt 00:00:02]
[%clk 00:00:20]} Rb4 {[%emt 00:01:06] [%clk 00:03:57]} 35. Rg8+ {[%emt 00:00:13]
[%clk 00:00:17]} Kb7 {[%clk 00:04:06]} 36. Nd6+ {[%emt 00:00:15] [%clk
00:00:12]} Bxd6 {[%emt 00:00:01] [%clk 00:04:14]} 37. Qd2 {[%emt 00:00:04] [%clk
00:00:19]} Qxf3# {[%emt 00:00:02] [%clk 00:04:22]} 0-1

[Site "Europe Echecs"]

[Event "Championnat d'Europe Rapide"]
[Date "2024.12.08"]
[White "Kalezic, Blazo"]
[Black "Zlatkov, Anton"]
[WhiteElo "2382"]
[BlackElo "2324"]
[Round "11.31"]
[Result "1-0"]
[TimeControl "900+10"]

1. e4 {[%emt 00:00:02] [%clk 00:15:17]} c5 {[%emt 00:00:02] [%clk 00:15:19]} 2.
Nf3 {[%emt 00:00:02] [%clk 00:15:25]} Nc6 {[%emt 00:00:02] [%clk 00:15:28]} 3.
Nc3 {[%emt 00:00:02] [%clk 00:15:32]} e6 {[%emt 00:00:02] [%clk 00:15:36]} 4. d4
{[%emt 00:00:02] [%clk 00:15:40]} cxd4 {[%emt 00:00:02] [%clk 00:15:44]} 5. Nxd4
{[%emt 00:00:02] [%clk 00:15:49]} Nf6 {[%emt 00:00:01] [%clk 00:15:52]} 6. a3
{[%emt 00:00:21] [%clk 00:15:38]} d6 {[%emt 00:00:02] [%clk 00:16:00]} 7. Be3
{[%emt 00:01:14] [%clk 00:14:34]} Be7 {[%emt 00:00:03] [%clk 00:16:07]} 8. Be2
{[%emt 00:00:14] [%clk 00:14:29]} e5 {[%emt 00:00:08] [%clk 00:16:10]} 9. Nb3
{[%emt 00:00:42] [%clk 00:13:57]} Be6 {[%emt 00:00:04] [%clk 00:16:16]} 10. O-O
{[%emt 00:00:23] [%clk 00:13:43]} d5 {[%emt 00:01:23] [%clk 00:15:04]} 11. exd5
{[%emt 00:00:02] [%clk 00:13:51]} Nxd5 {[%emt 00:00:01] [%clk 00:15:12]} 12.
Nxd5 {[%emt 00:00:02] [%clk 00:13:59]} Bxd5 {[%emt 00:00:27] [%clk 00:14:55]}
13. c4 {[%emt 00:00:33] [%clk 00:13:36]} Be6 {[%emt 00:00:20] [%clk 00:14:45]}
14. Nc5 {[%emt 00:00:04] [%clk 00:13:41]} Bxc5 {[%emt 00:02:48] [%clk 00:12:08]}
15. Bxc5 {[%emt 00:00:02] [%clk 00:13:48]} b6 {[%emt 00:01:16] [%clk 00:11:02]}
16. Bd6 {[%emt 00:01:45] [%clk 00:12:13]} Qd7 {[%emt 00:02:05] [%clk 00:09:08]}
17. b4 {[%emt 00:00:47] [%clk 00:11:35]} f6 {[%emt 00:00:29] [%clk 00:08:49]}
18. f4 {[%emt 00:00:08] [%clk 00:11:37]} exf4 {[%emt 00:00:57] [%clk 00:08:02]}
19. Rxf4 {[%emt 00:00:46] [%clk 00:11:02]} Kf7 {[%emt 00:01:10] [%clk 00:07:02]}
20. c5 {[%emt 00:00:23] [%clk 00:10:48]} Rhd8 {[%emt 00:00:53] [%clk 00:06:19]}
21. Qc2 {[%emt 00:02:05] [%clk 00:08:53]} Kg8 {[%emt 00:00:43] [%clk 00:05:46]}
22. Bd3 {[%emt 00:00:21] [%clk 00:08:42]} h6 {[%emt 00:00:24] [%clk 00:05:32]}
23. Qf2 {[%emt 00:02:52] [%clk 00:05:58]} bxc5 {[%emt 00:01:02] [%clk 00:04:41]}
24. bxc5 {[%emt 00:00:04] [%clk 00:06:04]} Ne5 {[%emt 00:00:22] [%clk 00:04:29]}
25. Be4 {[%emt 00:00:02] [%clk 00:06:12]} Rac8 {[%emt 00:00:01] [%clk 00:04:38]}
26. Qg3 {[%emt 00:00:08] [%clk 00:06:14]} f5 {[%emt 00:01:11] [%clk 00:03:38]}
27. Bxe5 {[%emt 00:01:09] [%clk 00:05:14]} fxe4 {[%emt 00:00:02] [%clk
00:03:46]} 28. Bd6 {[%emt 00:00:15] [%clk 00:05:08]} Qa4 {[%emt 00:00:12] [%clk
00:03:44]} 29. Qe3 {[%emt 00:01:40] [%clk 00:03:37]} Bd5 {[%emt 00:00:13] [%clk
00:03:43]} 30. h4 {[%emt 00:00:19] [%clk 00:03:27]} Re8 {[%emt 00:00:23] [%clk
00:03:30]} 31. Kh2 {[%emt 00:00:55] [%clk 00:02:41]} Qb3 {[%emt 00:00:41] [%clk
00:02:59]} 32. Qd4 {[%emt 00:01:39] [%clk 00:01:12]} Qc4 {[%emt 00:00:03] [%clk
00:03:06]} 33. Qf2 {[%emt 00:00:30] [%clk 00:00:50]} Qc3 {[%emt 00:01:26] [%clk
00:01:51]} 34. Re1 {[%emt 00:00:29] [%clk 00:00:30]} e3 {[%emt 00:00:40] [%clk
00:01:23]} 35. Qg3 {[%emt 00:00:02] [%clk 00:00:37]} Rcd8 {[%emt 00:00:49] [%clk
00:00:44]} 36. Rf5 {[%emt 00:00:11] [%clk 00:00:36]} Qb3 {[%emt 00:00:26] [%clk
00:00:29]} 37. Be5 {[%emt 00:00:12] [%clk 00:00:33]} Rd7 {[%emt 00:00:02] [%clk
00:00:37]} 38. Rxe3 {[%emt 00:00:06] [%clk 00:00:37]} Qc2 {[%clk 00:00:46]} 39.
Qg6 {[%emt 00:00:09] [%clk 00:00:38]} Rf7 {[%emt 00:00:32] [%clk 00:00:24]} 40.
Bxg7 {[%emt 00:00:26] [%clk 00:00:22]} Qxg2+ {[%emt 00:00:15] [%clk 00:00:20]}
41. Qxg2 {[%emt 00:00:01] [%clk 00:00:31]} Bxg2 {[%emt 00:00:03] [%clk
00:00:27]} 42. Rxe8+ {[%emt 00:00:07] [%clk 00:00:33]} Kxg7 {[%emt 00:00:01]
[%clk 00:00:36]} 43. Rxf7+ {[%emt 00:00:04] [%clk 00:00:40]} Kxf7 {[%emt
00:00:01]} 44. Rc8 {[%emt 00:00:04] [%clk 00:00:44]} Bd5 {[%emt 00:00:02] [%clk
00:00:54]} 45. Rc7+ {[%emt 00:00:01] [%clk 00:00:53]} 1-0

[Site "Europe Echecs"]